bitfinex-derivatives/quotes_BTCF0:USTF0_20210102
["timestamp","ask_amount","ask_price","bid_price","bid_amount"]
[1609606126831,0.2812,32271.0,32240.0,0.29772158]
[1609606127731,0.092,32270.0,32240.0,0.29772158]
[1609606128331,0.12412651,32297.0,32240.0,0.29772158]
[1609606128535,0.00765651,32297.0,32282.0,0.18043158]
[1609606128733,0.00765651,32297.0,32282.0,0.31738158]
[1609606128933,0.0098,32319.0,32282.0,0.31738158]
[1609606129532,0.0918,32318.0,32282.0,0.1191]
[1609606129934,0.0098,32319.0,32282.0,0.1191]
[1609606130435,0.18043158,32288.0,32282.0,0.1191]
[1609606130635,0.0098,32319.0,32282.0,0.1191]
[1609606131236,0.0098,32319.0,32288.0,5.0134]
[1609606131937,0.0925,32318.0,32288.0,5.0134]
[1609606132138,0.02255292,32353.0,32288.0,4.69601842]
[1609606132539,0.02255292,32353.0,32349.0,0.18043158]
[1609606132739,0.02255292,32353.0,32342.0,0.133]
[1609606133740,0.12948,32357.0,32288.0,4.69601842]
[1609606136045,0.0937,32356.0,32288.0,4.69601842]
[1609606136244,0.12948,32357.0,32288.0,4.69601842]
[1609606137945,0.11229,32364.0,32288.0,4.69601842]
[1609606138146,0.00775191,32371.0,32288.0,4.69601842]
[1609606138346,0.0916,32370.0,32288.0,4.69601842]
[1609606138747,0.15104,32372.0,32288.0,4.69601842]
[1609606138946,0.6512,32376.0,32288.0,4.69601842]
[1609606139746,0.0918,32375.0,32288.0,4.69601842]
[1609606139947,0.24451,32375.0,32288.0,4.69601842]
[1609606140146,0.15271,32375.0,32288.0,4.69601842]
[1609606140349,0.15271,32375.0,32282.0,0.1191]
[1609606140547,4.9826,32365.0,32261.0,3.5099]
[1609606140748,5.10969,32365.0,32261.0,3.5099]
[1609606141248,0.18043158,32284.0,32265.0,0.18043158]
[1609606141446,1.0,32364.0,32265.0,0.18043158]
[1609606141447,0.16555,32342.0,32265.0,0.18043158]
[1609606141649,4.7298,32315.0,32265.0,0.1447]
[1609606142449,0.0924,32314.0,32265.0,0.1447]
[1609606142649,0.10704,32319.0,32265.0,0.1447]
[1609606143149,0.18043158,32294.0,32286.0,0.18043158]
[1609606144250,0.18043158,32294.0,32265.0,0.1447]
[1609606144652,0.0928,32293.0,32265.0,0.1447]
[1609606145151,0.0928,32293.0,32291.0,0.18043158]
[1609606145353,0.5456759,32293.0,32290.0,0.10936]
[1609606145553,0.4528759,32293.0,32290.0,0.10936]
[1609606146353,0.4528759,32293.0,32265.0,0.1447]
[1609606146554,14.68928065,32294.0,32250.0,3.814]
[1609606146753,14.68928065,32294.0,32250.0,3.93466]
[1609606147154,14.68928065,32294.0,32293.0,0.18043158]
[1609606147353,14.68928065,32294.0,32282.0,0.13342]
[1609606147555,14.69217037,32290.0,32282.0,0.13342]
[1609606148357,17.04461384,32294.0,32282.0,0.13342]
[1609606149158,0.18043158,32283.0,32282.0,0.13342]
[1609606149358,0.18043158,32283.0,32274.0,0.13037]
[1609606149559,0.18043158,32283.0,32250.0,0.12066]
[1609606150359,7.3286107,32276.0,32250.0,0.12066]
[1609606150560,7.4625707,32276.0,32240.0,0.11729]
[1609606150759,7.4625707,32276.0,32188.0,0.17209]
[1609606150959,3.9969,32271.0,32174.0,4.2264]
[1609606151162,0.18043158,32213.0,32210.0,0.18043158]
[1609606151563,0.11028,32243.0,32211.0,0.00039708]
[1609606151763,24.91967017,32240.0,32211.0,0.16309708]
[1609606152162,0.0932,32239.0,32211.0,0.1627]
[1609606152362,0.0932,32239.0,32212.0,0.00039725]
[1609606153163,0.0932,32239.0,32238.0,0.18043158]
[1609606153363,2.74246175,32240.0,32238.0,0.18043158]
[1609606153964,2.74246175,32240.0,32223.0,0.11092]
[1609606154563,2.74246175,32240.0,32224.0,0.00039708]
[1609606154765,2.74246175,32240.0,32223.0,0.11092]
[1609606154964,2.74246175,32240.0,32211.0,0.1627]
[1609606155165,0.18043158,32212.0,32211.0,0.1627]
[1609606155565,2.74246175,32240.0,32211.0,0.16309725]
[1609606156067,2.74246175,32240.0,32212.0,0.00039716]
[1609606156668,25.30558511,32250.0,32212.0,0.00039716]
[1609606157167,0.18043158,32215.0,32212.0,0.00039716]
[1609606157368,25.41264511,32250.0,32212.0,0.00039716]
[1609606157770,22.67249762,32237.0,32212.0,0.00039716]
[1609606157969,21.67249762,32237.0,32212.0,0.00039716]
[1609606158368,2.78493249,32250.0,32212.0,0.00039716]
[1609606158568,0.0943,32249.0,32212.0,0.00039716]
[1609606158770,2.78493249,32250.0,32212.0,0.00039716]
[1609606159169,0.18043158,32213.0,32212.0,0.00039716]
[1609606159369,0.18043158,32213.0,32211.0,0.1627]
[1609606159570,0.18043158,32213.0,32178.0,0.2905]
[1609606160172,0.18043158,32213.0,32179.0,0.00039743]
[1609606160372,0.18043158,32213.0,32179.0,0.15026482]
[1609606160972,0.093,32212.0,32180.0,0.00039743]
[1609606161172,4.56,32211.0,32186.0,0.18043158]
[1609606161373,4.56,32211.0,32179.0,0.14986743]
[1609606162174,0.0938,32210.0,32179.0,0.14986743]
[1609606162374,4.56,32211.0,32179.0,0.14986743]
[1609606162975,1.0,32215.0,32179.0,0.14986743]
[1609606163175,0.18043158,32180.0,32179.0,0.00039743]
[1609606163575,0.30077158,32180.0,32179.0,0.00039743]
[1609606163775,1.02427158,32180.0,32179.0,0.00039743]
[1609606163975,0.30077158,32180.0,32002.0,0.2995]
[1609606164175,3.5611,32167.0,32079.0,3.8792]
[1609606164375,4.5826,32154.0,31997.0,3.5937]
[1609606164575,4.5826,32154.0,32025.0,0.3014]
[1609606164775,4.70182,32154.0,32025.0,0.3014]
[1609606164974,0.11922,32154.0,32025.0,0.3014]
[1609606165175,0.18043158,32139.0,32135.0,0.18043158]
[1609606165377,0.0943,32151.0,32135.0,0.18043158]
[1609606166577,23.34720961,32147.0,32135.0,0.18043158]
[1609606167077,21.33550961,32147.0,32135.0,0.18043158]
[1609606167277,21.33550961,32147.0,32146.0,0.18043158]
[1609606167477,21.33550961,32147.0,32146.0,0.30226158]
[1609606167678,20.29431961,32147.0,32146.0,0.12183]
[1609606167878,19.48248961,32147.0,32146.0,0.12183]
[1609606168079,19.36838961,32147.0,32146.0,0.12183]
[1609606168278,18.09523961,32147.0,32146.0,0.12183]
[1609606168479,14.96607961,32147.0,32146.0,0.12183]
[1609606168681,5.24458215,32164.0,32146.0,0.12183]
[1609606169187,0.46872379,32198.0,32163.0,0.18043158]
[1609606169381,0.46872379,32198.0,32163.0,0.31095158]
[1609606169982,0.46872379,32198.0,32163.0,0.13052]
[1609606171185,0.46872379,32198.0,32197.0,0.18043158]
[1609606171383,0.56102379,32198.0,32197.0,0.18043158]
[1609606171583,0.46872379,32198.0,32197.0,0.18043158]
[1609606171786,0.46872379,32198.0,32197.0,0.16761]
[1609606172185,0.78110219,32205.0,32197.0,0.16761]
[1609606172584,0.05278219,32205.0,32202.0,4.5426]
[1609606172783,0.0927,32213.0,32202.0,4.5426]
[1609606172984,4.0304,32316.0,32202.0,4.5426]
[1609606173183,0.2785,32315.0,32202.0,4.5426]
[1609606173384,0.2785,32315.0,32220.0,0.18043158]
[1609606173585,0.0929,32229.0,32220.0,0.18043158]
[1609606173984,5.0001,32310.0,32220.0,0.18043158]
[1609606174185,5.0001,32310.0,32221.0,0.00039689]
[1609606174385,5.0001,32310.0,32221.0,0.10528689]
[1609606174584,1.36258076,32234.0,32221.0,0.10528689]
[1609606174886,0.37399076,32234.0,32222.0,0.00039677]
[1609606175285,0.37399076,32234.0,32233.0,0.18043158]
[1609606175485,3.77293936,32292.0,32233.0,0.18043158]
[1609606175486,5.0001,32310.0,32233.0,0.33803158]
[1609606175686,0.2785,32315.0,32233.0,0.33842831]
[1609606175885,0.2785,32315.0,32240.0,4.2417]
[1609606176286,0.2785,32315.0,32246.0,2.71396632]
[1609606177288,0.2785,32315.0,32292.0,0.18043158]
[1609606177890,1.0,32300.0,32292.0,0.18043158]
[1609606178288,1.15432,32300.0,32268.0,3.5613]
[1609606178990,1.15432,32300.0,32261.0,2.1714378]
[1609606179391,0.95718212,32300.0,32270.0,2.17123335]
[1609606179791,0.95718212,32300.0,32270.0,1.02164335]
[1609606179991,0.95718212,32300.0,32261.0,2.71404169]
[1609606180192,0.95718212,32300.0,32237.0,2.71599793]
[1609606181293,0.18043158,32249.0,32246.0,0.18043158]
[1609606181494,0.15213,32253.0,32246.0,0.18043158]
[1609606181694,0.15213,32253.0,32237.0,2.71599793]
[1609606182595,0.15213,32253.0,32215.0,2.71856781]
[1609606183295,0.18043158,32252.0,32242.0,0.18043158]
[1609606183495,0.18043158,32252.0,32203.0,3.26228137]
[1609606183496,0.18043158,32252.0,32201.0,2.71945854]
[1609606184396,0.15213,32253.0,32201.0,2.71945854]
[1609606184598,0.15213,32253.0,32201.0,2.88884854]
[1609606185397,0.15213,32253.0,32240.0,0.18043158]
[1609606185799,0.15213,32253.0,32215.0,0.11974]
[1609606186300,0.11622,32253.0,32219.0,1.99440331]
[1609606187303,0.11622,32253.0,32252.0,0.18043158]
[1609606188404,0.11622,32253.0,32222.0,1.99584312]
[1609606189003,0.11622,32253.0,32220.0,1.99638873]
[1609606189404,0.11622,32253.0,32237.0,0.18043158]
[1609606189905,0.11622,32253.0,32220.0,1.99638873]
[1609606190305,0.11622,32253.0,32206.0,1.99735269]
[1609606190906,0.11622,32253.0,32194.0,1.99770284]
[1609606191306,0.11622,32253.0,32227.0,0.18043158]
[1609606191506,4.0942,32265.0,32227.0,0.18043158]
[1609606191911,0.5882,32299.0,32227.0,0.18043158]
[1609606193310,0.5882,32299.0,32224.0,0.1664]
[1609606193511,0.5882,32299.0,32230.0,3.8928]
[1609606194412,0.5882,32299.0,32224.0,0.1664]
[1609606194712,0.5882,32299.0,32212.0,0.17125]
[1609606194912,0.5882,32299.0,32225.0,0.00039701]
[1609606195114,0.5882,32299.0,32213.0,0.00039701]
[1609606195312,0.5882,32299.0,32260.0,0.18043158]
[1609606195512,0.5882,32299.0,32206.0,5.0225]
[1609606195713,0.5882,32299.0,32228.0,1.99897859]
[1609606196514,0.5882,32299.0,32229.0,0.0003971]
[1609606196913,0.5882,32299.0,32220.0,0.0003971]
[1609606197315,0.5882,32299.0,32250.0,0.18043158]
[1609606198316,0.5882,32299.0,32251.0,0.00039704]
[1609606198916,0.00037925,32298.0,32250.0,0.18043158]
[1609606199318,0.18043158,32251.0,32250.0,0.18043158]
[1609606199518,0.18043158,32251.0,32222.0,2.00334094]
[1609606199718,0.28595158,32251.0,32250.0,0.00039402]
[1609606200119,0.10552,32251.0,32225.0,4.9487]
[1609606200320,0.10552,32251.0,32250.0,0.000394]
[1609606200720,0.10552,32251.0,32226.0,0.00039397]
[1609606200919,0.10552,32251.0,32250.0,0.00039395]
[1609606201319,0.10552,32251.0,32249.0,0.18043158]
[1609606201519,0.10552,32251.0,32250.0,0.00039397]
[1609606202622,0.10552,32251.0,32230.0,2.00519868]
[1609606202823,0.10552,32251.0,32250.0,0.00039402]
[1609606203021,0.10552,32251.0,32231.0,0.00039402]
[1609606203424,0.18043158,32246.0,32244.0,0.18043158]
[1609606203622,0.10552,32251.0,32244.0,0.18043158]
[1609606203823,0.10552,32251.0,32245.0,0.00039408]
[1609606204727,5.1022,32283.0,32245.0,0.00039408]
[1609606204927,0.02,32288.0,32245.0,0.00039408]
[1609606205328,0.18043158,32246.0,32245.0,0.00039408]
[1609606205526,0.30233158,32246.0,32240.0,0.18043158]
[1609606205727,0.30233158,32246.0,32245.0,0.00039415]
[1609606206029,0.30233158,32246.0,32241.0,0.00039415]
[1609606206329,0.30233158,32246.0,32245.0,0.00039415]
[1609606206530,0.30233158,32246.0,32242.0,0.00039418]
[1609606206830,0.30233158,32246.0,32241.0,0.00039418]
[1609606207130,0.30233158,32246.0,32243.0,0.00039418]
[1609606207330,0.30233158,32246.0,32242.0,0.0003942]
[1609606207631,0.30233158,32246.0,32233.0,0.0003942]
[1609606208031,0.30233158,32246.0,32243.0,0.0003942]
[1609606208231,0.30233158,32246.0,32234.0,0.00039416]
[1609606208431,0.30233158,32246.0,32244.0,0.00039416]
[1609606208830,0.30233158,32246.0,32235.0,0.00039416]
[1609606209132,0.30233158,32246.0,32245.0,0.00039416]
[1609606209331,0.30233158,32246.0,32236.0,0.00039419]
[1609606209531,0.30233158,32246.0,32245.0,0.00039419]
[1609606209732,0.30233158,32246.0,32221.0,4.48573158]
[1609606209931,0.30233158,32246.0,32222.0,0.03794646]
[1609606210131,0.30233158,32246.0,32222.0,0.00039425]
[1609606210333,0.30233158,32246.0,32223.0,0.00039425]
[1609606210932,0.30233158,32246.0,32222.0,0.00039422]
[1609606211133,0.30233158,32246.0,32224.0,0.00039422]
[1609606211332,0.30233158,32246.0,32244.0,0.18043158]
[1609606211733,0.1219,32246.0,32245.0,0.00039414]
[1609606211933,0.01117105,32259.0,32245.0,0.00039414]
[1609606212133,0.00323958,32264.0,32245.0,0.00039414]
[1609606212937,0.01111808,32271.0,32245.0,0.00039414]
[1609606213336,0.01111808,32271.0,32270.0,0.18043158]
[1609606213536,0.00787531,32271.0,32270.0,0.18043158]
[1609606213738,0.00325609,32285.0,32270.0,0.18043158]
[1609606213939,0.00325609,32285.0,32270.0,0.1808254]
[1609606214137,0.00325609,32285.0,32271.0,0.00039376]
[1609606214538,0.00326867,32306.0,32271.0,0.00039376]
[1609606215339,0.18043158,32301.0,32287.0,0.18043158]
[1609606215837,0.18043158,32301.0,32287.0,0.18082519]
[1609606217341,0.18043158,32303.0,32287.0,0.18082519]
[1609606217541,0.00326007,32331.0,32287.0,0.18082519]
[1609606217943,0.01118325,32334.0,32287.0,0.18082519]
[1609606218340,0.80286212,32300.0,32287.0,0.18082519]
[1609606218542,0.80286212,32300.0,32288.0,0.00039334]
[1609606219441,0.80286212,32300.0,32299.0,0.18043158]
[1609606219841,0.80286212,32300.0,32299.0,0.18082487]
[1609606220041,0.80286212,32300.0,32299.0,0.84132487]
[1609606220841,0.0112774,32366.0,32299.0,0.84132487]
[1609606221042,0.0112774,32366.0,32299.0,0.18082487]
[1609606221244,0.0112774,32366.0,32307.0,4.5991]
[1609606221443,0.0112774,32366.0,32349.0,0.18043158]
[1609606222244,0.48586783,32367.0,32349.0,0.18043158]
[1609606222444,0.00332714,32381.0,32349.0,0.18043158]
[1609606222846,0.01140539,32388.0,32349.0,0.18043158]
[1609606223247,0.01144814,32401.0,32349.0,0.18043158]
[1609606223444,0.01144814,32401.0,32377.0,0.18043158]
[1609606223645,0.01144814,32401.0,32342.0,0.16601]
[1609606223845,0.18037814,32401.0,32342.0,0.16601]
[1609606224445,0.18037814,32401.0,32340.0,4.0936]
[1609606225447,0.18043158,32359.0,32335.0,0.12623]
[1609606225648,0.18043158,32359.0,32327.0,0.1226]
[1609606225854,0.117,32361.0,32327.0,0.1226]
[1609606226649,0.117,32361.0,32327.0,0.13594]
[1609606226848,0.117,32361.0,32327.0,0.78884]
[1609606227049,0.18037814,32401.0,32327.0,0.78884]
[1609606227248,0.18037814,32401.0,32327.0,0.13594]
[1609606227451,0.18043158,32377.0,32332.0,5.1397]
[1609606227650,0.33419158,32377.0,32332.0,5.1397]
[1609606229453,0.18043158,32361.0,32360.0,0.18043158]
[1609606229654,0.15922,32361.0,32360.0,0.18043158]
[1609606230654,0.15922,32361.0,32332.0,5.1397]
[1609606231457,0.15922,32361.0,32353.0,0.18043158]
[1609606233159,0.15376,32377.0,32353.0,0.18043158]
[1609606233359,0.16893,32401.0,32353.0,0.18043158]
[1609606233560,0.00326063,32410.0,32376.0,0.18043158]
[1609606234760,0.00325848,32431.0,32376.0,0.18043158]
[1609606235060,0.00325848,32431.0,32376.0,0.33637158]
[1609606235460,0.95948362,32438.0,32376.0,0.33637158]
[1609606235461,0.2766,32438.0,32376.0,0.15594]
[1609606237563,0.18043158,32416.0,32414.0,0.18043158]
[1609606237764,0.29308158,32416.0,32376.0,0.15594]
[1609606239065,0.11265,32416.0,32376.0,0.15594]
[1609606239571,0.11265,32416.0,32415.0,0.18043158]
[1609606242569,0.11265,32416.0,32387.0,4.0369]
[1609606242869,0.18043158,32425.0,32387.0,4.0369]
[1609606243472,0.2996,32453.0,32415.0,0.18043158]
[1609606243671,4.8957,32460.0,32415.0,0.18043158]
[1609606243872,0.27324525,32490.0,32415.0,0.18043158]
[1609606244572,0.27324525,32490.0,32415.0,0.29629158]
[1609606245572,0.27324525,32490.0,32463.0,0.18043158]
[1609606245773,0.27324525,32490.0,32429.0,0.13338]
[1609606245972,0.40009525,32490.0,32429.0,0.13338]
[1609606246375,0.39685,32490.0,32429.0,0.13338]
[1609606246675,0.093,32489.0,32429.0,0.13338]
[1609606246874,0.39685,32490.0,32424.0,4.1822]
[1609606247474,0.18043158,32443.0,32440.0,0.18043158]
[1609606248879,0.18043158,32443.0,32423.0,3.6888]
[1609606249281,0.10645,32452.0,32423.0,3.6888]
[1609606249479,0.18043158,32451.0,32450.0,0.18043158]
[1609606249881,0.10645,32452.0,32450.0,0.18043158]
[1609606250281,0.39685,32490.0,32450.0,0.18043158]
[1609606251484,0.18043158,32455.0,32454.0,0.18043158]
[1609606252589,0.10716,32460.0,32454.0,0.18043158]
[1609606253489,0.10716,32460.0,32459.0,0.18043158]
[1609606253897,0.12604,32468.0,32459.0,0.18043158]
[1609606254590,0.12685,32490.0,32459.0,0.18043158]
[1609606254790,0.2966,32511.0,32459.0,0.18043158]
[1609606254991,0.2903,32512.0,32459.0,0.18043158]
[1609606255293,0.2772,32538.0,32459.0,0.18043158]
[1609606255497,0.2772,32538.0,32454.0,0.15742]
[1609606255696,0.2812,32537.0,32454.0,0.15742]
[1609606257595,0.2812,32537.0,32467.0,0.18043158]
[1609606257794,0.2812,32537.0,32463.0,0.15551]
[1609606258194,1.0,32536.0,32463.0,0.15551]
[1609606258695,1.2812,32537.0,32463.0,0.15551]
[1609606258897,1.2812,32537.0,32453.0,3.8794]
[1609606259697,0.18043158,32454.0,32453.0,4.05983158]
[1609606259898,0.15884,32460.0,32453.0,0.18043158]
[1609606261603,0.15884,32460.0,32459.0,0.18043158]
[1609606262903,0.2885,32506.0,32459.0,0.18043158]
[1609606263603,0.2885,32506.0,32474.0,0.18043158]
[1609606265603,0.2885,32506.0,32488.0,0.18043158]
[1609606265804,0.2949,32532.0,32488.0,0.18043158]
[1609606266004,0.5776,32532.0,32488.0,0.18043158]
[1609606266403,0.5776,32532.0,32488.0,0.33643158]
[1609606266805,0.093,32531.0,32488.0,0.33643158]
[1609606267003,0.24604,32531.0,32488.0,0.33643158]
[1609606267204,0.15304,32531.0,32488.0,0.33643158]
[1609606267604,0.18043158,32512.0,32510.0,0.18043158]
[1609606267804,0.30230158,32512.0,32510.0,0.18043158]
[1609606268006,0.30230158,32512.0,32488.0,0.156]
[1609606269208,0.12187,32512.0,32488.0,0.156]
[1609606269406,0.15585,32523.0,32488.0,0.156]
[1609606269606,0.15585,32523.0,32522.0,0.18043158]
[1609606270807,0.15304,32531.0,32508.0,0.11402]
[1609606271306,0.00304,32531.0,32508.0,0.11402]
[1609606271507,0.18043158,32537.0,32508.0,0.11402]
[1609606271708,0.2957,32573.0,32508.0,0.11402]
[1609606271709,0.18043158,32525.0,32508.0,0.11402]
[1609606271909,4.1901,32571.0,32498.0,0.10511]
[1609606272618,0.2957,32573.0,32498.0,0.10511]
[1609606273012,4.37,32543.0,32499.0,0.00039905]
[1609606273610,0.18043158,32505.0,32498.0,0.28554158]
[1609606273810,0.18043158,32505.0,32498.0,0.18043158]
[1609606274209,0.18043158,32505.0,32488.0,0.156]
[1609606274510,0.18043158,32505.0,32477.0,0.10657]
[1609606274710,0.18043158,32505.0,32461.0,3.4692]
[1609606275312,0.18043158,32505.0,32462.0,0.00039951]
[1609606275511,0.18043158,32505.0,32462.0,0.15375951]
[1609606275712,0.18043158,32497.0,32495.0,0.18043158]
[1609606276514,0.18043158,32497.0,32462.0,0.15336]
[1609606276914,0.18043158,32497.0,32463.0,0.00039931]
[1609606277615,0.11117,32502.0,32489.0,0.18043158]
[1609606278017,0.0913,32501.0,32471.0,0.13416]
[1609606278617,0.11117,32502.0,32472.0,0.00039936]
[1609606279720,0.11117,32502.0,32501.0,0.18043158]
[1609606280622,0.20227,32502.0,32501.0,0.18043158]
[1609606280820,0.20227,32502.0,32478.0,0.10859]
[1609606281022,0.0911,32502.0,32478.0,0.10859]
[1609606281221,0.0911,32502.0,32479.0,0.00039945]
[1609606281420,0.11497,32511.0,32479.0,0.00039945]
[1609606281625,0.296,32514.0,32510.0,0.18043158]
[1609606282021,0.296,32514.0,32511.0,0.00039921]
[1609606282821,0.296,32514.0,32479.0,0.00039943]
[1609606283021,0.42339,32514.0,32479.0,0.00039943]
[1609606283421,0.42339,32514.0,32472.0,0.00039906]
[1609606285022,0.42339,32514.0,32472.0,0.03805164]
[1609606285223,0.42339,32514.0,32472.0,0.00039906]
[1609606285623,0.42339,32514.0,32480.0,0.18043158]
[1609606285824,0.00037664,32513.0,32480.0,0.18043158]
[1609606286026,0.00037664,32513.0,32481.0,0.00039937]
[1609606286624,0.00037664,32513.0,32466.0,0.00039944]
[1609606287230,4.3777,32504.0,32466.0,0.00039944]
[1609606287426,4.48544,32504.0,32447.0,0.03807804]
[1609606287626,0.18043158,32458.0,32456.0,0.18043158]
[1609606288228,0.18043158,32458.0,32457.0,0.00039962]
[1609606288431,0.27393158,32458.0,32457.0,0.00039962]
[1609606288629,0.18043158,32458.0,32457.0,0.00039962]
[1609606288830,0.18043158,32458.0,32438.0,1.97343706]
[1609606289029,0.34409158,32458.0,32439.0,0.00039973]
[1609606289630,0.16366,32458.0,32439.0,0.00039973]
[1609606289829,0.16366,32458.0,32457.0,0.18043158]
[1609606290029,0.16366,32458.0,32428.0,0.17318]
[1609606290429,0.16366,32458.0,32457.0,0.00039975]
[1609606290630,0.16366,32458.0,32429.0,0.03809713]
[1609606291331,0.25546,32458.0,32429.0,0.03809713]
[1609606291532,0.25546,32458.0,32428.0,0.17318]
[1609606291733,0.34409158,32458.0,32457.0,0.18043158]
[1609606291929,0.34409158,32458.0,32430.0,0.03809244]
[1609606292130,0.34409158,32458.0,32457.0,0.00039969]
[1609606292532,0.34409158,32458.0,32429.0,0.03809257]
[1609606292741,0.43739158,32458.0,32429.0,0.03809257]
[1609606292940,0.43739158,32458.0,32428.0,0.17318]
[1609606293137,0.34409158,32458.0,32428.0,0.17318]
[1609606293332,0.34409158,32458.0,32430.0,0.00039989]
[1609606293543,0.34409158,32458.0,32429.0,0.00039976]
[1609606293732,0.16366,32458.0,32437.0,0.18043158]
[1609606294155,0.10925,32467.0,32438.0,0.00039978]
[1609606294532,0.2825,32473.0,32438.0,0.00039978]
[1609606296434,0.2825,32473.0,32427.0,0.00039976]
[1609606297234,0.2825,32473.0,32427.0,0.0380915]
[1609606297435,0.2825,32473.0,32426.0,0.03]
[1609606297636,0.2825,32473.0,32428.0,0.00039969]
[1609606297836,0.2825,32473.0,32460.0,0.18043158]
[1609606298237,0.2825,32473.0,32461.0,0.00039967]
[1609606299739,0.18043158,32464.0,32461.0,0.00039967]
[1609606300342,0.2825,32473.0,32461.0,0.00039967]
[1609606301746,0.46293158,32473.0,32472.0,0.18043158]
[1609606302147,0.2825,32473.0,32472.0,0.18083114]
[1609606302647,0.2825,32473.0,32472.0,0.00039956]
[1609606303052,0.2825,32473.0,32455.0,2.01965631]
[1609606303450,0.16321,32474.0,32455.0,2.01965631]
[1609606303650,0.2708,32515.0,32456.0,0.00039958]
[1609606303849,0.18043158,32480.0,32478.0,0.18043158]
[1609606304050,0.18043158,32480.0,32456.0,0.00039958]
[1609606305450,0.18043158,32480.0,32462.0,2.02510086]
[1609606305750,0.18043158,32473.0,32472.0,0.18043158]
[1609606305950,0.14171,32496.0,32472.0,0.18043158]
[1609606306148,0.14171,32496.0,32472.0,0.18083109]
[1609606306549,0.14171,32496.0,32473.0,0.00039949]
[1609606307750,0.18043158,32481.0,32479.0,0.18043158]
[1609606308151,0.18043158,32481.0,32480.0,0.00039949]
[1609606309551,0.18043158,32481.0,32471.0,0.00039955]
[1609606309751,0.18043158,32472.0,32467.0,0.00039959]
[1609606311053,0.15281,32474.0,32467.0,0.00039959]
[1609606311853,0.15281,32474.0,32473.0,0.18043158]
[1609606312455,0.15281,32474.0,32473.0,0.18083111]
[1609606312653,0.15281,32474.0,32473.0,0.21850418]
[1609606312854,0.15281,32474.0,32473.0,0.00039953]
[1609606313056,0.15972,32488.0,32473.0,0.00039953]
[1609606313255,3.4472,32490.0,32473.0,0.13854]
[1609606313454,3.4472,32490.0,32474.0,0.00039953]
[1609606313856,0.18043158,32475.0,32474.0,0.03807864]
[1609606314257,0.18043158,32475.0,32467.0,0.03807946]
[1609606314455,0.18043158,32475.0,32474.0,0.03767602]
[1609606314656,0.18043158,32475.0,32474.0,0.03807553]
[1609606314855,0.18043158,32475.0,32467.0,0.03807481]
[1609606315057,0.18043158,32475.0,32474.0,0.03807424]
[1609606315455,0.18043158,32475.0,32466.0,2.02655777]
[1609606315456,0.18043158,32475.0,32468.0,0.03807629]
[1609606315655,0.18043158,32475.0,32474.0,0.03808008]
[1609606315856,0.18043158,32475.0,32469.0,0.0380782]
[1609606316256,0.18043158,32475.0,32474.0,0.0380797]
[1609606316458,0.18043158,32475.0,32470.0,0.03808047]
[1609606316657,0.18043158,32475.0,32474.0,0.03808184]
[1609606317068,0.18043158,32475.0,32466.0,0.83035777]
[1609606317258,0.31039158,32475.0,32474.0,0.00039963]
[1609606317457,0.31039158,32475.0,32467.0,0.00039968]
[1609606317760,0.31039158,32475.0,32474.0,0.00039971]
[1609606317959,0.31039158,32475.0,32467.0,0.00039973]
[1609606318159,0.31039158,32475.0,32463.0,2.2109014]
[1609606318359,0.31039158,32475.0,32435.0,0.16679]
[1609606318360,4.3278,32469.0,32454.0,2.21870985]
[1609606318560,1.0,32468.0,32464.0,0.00039983]
[1609606318759,1.0,32468.0,32454.0,2.21870985]
[1609606318760,1.16387,32468.0,32455.0,0.00041066]
[1609606319060,1.16387,32468.0,32454.0,1.78150985]
[1609606319862,0.18043158,32455.0,32454.0,1.78150985]
[1609606320061,0.33514158,32455.0,32454.0,1.78150985]
[1609606320264,3.8436,32454.0,32422.0,2.40345441]
[1609606320462,1.0,32453.0,32422.0,2.40345441]
[1609606320663,1.0,32453.0,32427.0,0.03812761]
[1609606321663,0.02,32454.0,32427.0,0.03812761]
[1609606321864,0.18043158,32428.0,32427.0,0.03812761]
[1609606322075,0.13317,32430.0,32427.0,0.03812761]
[1609606323365,0.13317,32430.0,32427.0,0.00041083]
[1609606323564,0.13317,32430.0,32428.0,0.00041087]
[1609606323965,0.13317,32430.0,32406.0,2.57165784]
[1609606323966,0.18043158,32429.0,32427.0,0.00041087]
[1609606324968,0.18043158,32429.0,32406.0,2.39425311]
[1609606325267,0.18043158,32429.0,32406.0,2.39466404]
[1609606325467,0.18043158,32429.0,32407.0,0.00041095]
[1609606325869,0.18043158,32408.0,32407.0,0.00041095]
[1609606326667,0.18043158,32408.0,32406.0,2.39466404]
[1609606327470,0.18043158,32408.0,32406.0,0.00041093]
[1609606328371,0.18043158,32408.0,32401.0,2.39314484]
[1609606328771,0.18043158,32408.0,32387.0,2.01922463]
[1609606328971,1.18043158,32408.0,32387.0,2.01922463]
[1609606329373,0.5,32406.0,32387.0,2.01922463]
[1609606329573,1.5,32406.0,32387.0,2.01922463]
[1609606329974,0.18043158,32388.0,32378.0,2.01705121]
[1609606331674,0.5807,32387.0,32364.0,2.01514405]
[1609606331873,0.18043158,32368.0,32364.0,2.01514405]
[1609606333077,0.6846,32367.0,32364.0,2.01514405]
[1609606333275,1.0,32366.0,32364.0,2.01514405]
[1609606333478,1.0,32366.0,32330.0,0.29]
[1609606333479,1.0,32366.0,32353.0,2.01254024]
[1609606333675,1.10903,32366.0,32353.0,2.01254024]
[1609606333876,0.18043158,32354.0,32353.0,2.01254024]
[1609606334077,1.18043158,32354.0,32353.0,2.01254024]
[1609606334276,0.18043158,32354.0,32353.0,2.01254024]
[1609606334677,0.18043158,32354.0,32329.0,2.00950603]
[1609606335380,0.0926,32353.0,32329.0,2.00950603]
[1609606335792,0.0926,32353.0,32331.0,0.00041175]
[1609606335983,0.0926,32353.0,32331.0,0.16568175]
[1609606336178,0.0926,32353.0,32331.0,0.16527]
[1609606336378,0.2952,32380.0,32352.0,0.18043158]
[1609606336580,0.2952,32380.0,32352.0,0.29745158]
[1609606337481,0.2952,32380.0,32353.0,0.00041143]
[1609606338283,0.47563158,32380.0,32379.0,0.18043158]
[1609606338486,0.47563158,32380.0,32379.0,0.1536]
[1609606339284,0.2952,32380.0,32379.0,0.1536]
[1609606340186,0.3869,32380.0,32379.0,0.1536]
[1609606340388,0.2952,32380.0,32379.0,0.33403158]
[1609606341588,4.7365,32396.0,32379.0,0.33444284]
[1609606342089,4.7365,32396.0,32380.0,0.00041121]
[1609606342290,4.7365,32396.0,32395.0,0.18043158]
[1609606342489,0.0934,32396.0,32395.0,0.35232158]